bitfinex-derivatives/quotes_SOLF0:USTF0_20250609
["timestamp","ask_amount","ask_price","bid_price","bid_amount"]
[1749464857055,0.04251647,154.83,154.79,0.0462877]
[1749464857448,6.49761647,154.83,154.79,0.0462877]
[1749464858354,0.04251647,154.83,154.79,0.0462877]
[1749464858755,0.04251647,154.83,154.8,6.456]
[1749464859448,0.04251647,154.83,154.79,0.0462877]
[1749464860048,0.04251647,154.83,154.82,6.4554]
[1749464861348,0.04251647,154.83,154.79,6.16009643]
[1749464861855,0.04251647,154.83,154.81,6.4555]
[1749464862043,0.04251647,154.83,154.79,0.0462877]
[1749464863154,6.456,154.81,154.79,0.0462877]
[1749464864056,0.04251647,154.83,154.79,0.0462877]
[1749464864658,6.4555,154.82,154.79,0.0462877]
[1749464864856,0.04251647,154.83,154.79,0.0462877]
[1749464865953,6.4562,154.81,154.79,0.0462877]
[1749464866257,0.04251647,154.83,154.79,0.0462877]
[1749464866957,6.4555,154.82,154.79,6.5028877]
[1749464867159,0.04251647,154.83,154.79,0.0462877]
[1749464867361,6.4557,154.82,154.79,6.5028877]
[1749464867561,0.04251647,154.83,154.79,0.0462877]
[1749464869263,6.4563,154.81,154.79,0.0462877]
[1749464869862,6.4555,154.82,154.79,0.0462877]
[1749464870459,6.456,154.81,154.79,0.0462877]
[1749464871163,0.04251647,154.83,154.79,0.0462877]
[1749464871660,0.04251647,154.83,154.8,6.4559]
[1749464871867,0.04251647,154.83,154.79,0.0462877]
[1749464873868,6.4557,154.82,154.79,0.0462877]
[1749464874867,6.4559,154.81,154.79,0.0462877]
[1749464875570,6.4556,154.82,154.79,6.5029877]
[1749464876269,6.4556,154.82,154.79,0.0462877]
[1749464877571,6.4559,154.81,154.79,0.0462877]
[1749464878165,0.04251647,154.83,154.79,0.0462877]
[1749464878166,6.4558,154.82,154.79,0.0462877]
[1749464878970,6.4559,154.81,154.79,0.0462877]
[1749464879173,0.04251647,154.83,154.79,0.0462877]
[1749464879574,6.4558,154.82,154.79,0.0462877]
[1749464880266,6.4558,154.82,154.79,6.5028877]
[1749464880473,0.04251647,154.83,154.79,0.0462877]
[1749464882980,6.49781647,154.83,154.8,6.456]
[1749464883175,0.04251647,154.83,154.81,3.75382461]
[1749464884190,0.04251647,154.83,154.82,6.4554]
[1749464886286,0.04251647,154.83,154.81,6.4557]
[1749464886486,0.04251647,154.83,154.8,3.75382461]
[1749464886686,0.04251647,154.83,154.81,6.4555]
[1749464886882,0.04251647,154.83,154.8,3.75382461]
[1749464887589,0.04251647,154.83,154.82,6.4554]
[1749464888390,0.04251647,154.83,154.82,10.20922461]
[1749464889891,4.2688,154.88,154.86,6.4538]
[1749464890090,6.02162382,154.91,154.86,3.75382461]
[1749464890290,6.02162382,154.93,154.86,3.75382461]
[1749464890492,6.02162382,154.93,154.87,6.4531]
[1749464890991,6.452,154.91,154.88,0.04413159]
[1749464891394,0.04693846,154.92,154.88,0.04413159]
[1749464891688,0.04693846,154.92,154.89,6.4523]
[1749464891992,0.04693846,154.92,154.88,3.7979562]
[1749464892192,6.49863846,154.92,154.89,6.4523]
[1749464892788,6.4517,154.91,154.88,10.2507562]
[1749464892988,6.4517,154.91,154.88,3.7979562]
[1749464893295,6.452,154.91,154.88,3.7979562]
[1749464893989,6.452,154.91,154.88,10.2507562]
[1749464894195,6.4522,154.9,154.88,3.7979562]
[1749464894390,0.04693846,154.92,154.88,0.04413159]
[1749464894588,6.4524,154.9,154.88,0.04413159]
[1749464894796,0.04693846,154.92,154.88,0.04413159]
[1749464895188,6.4525,154.89,154.88,0.04413159]
[1749464900003,3.75382461,154.91,154.82,39.32]
[1749464900195,3.75382461,154.91,154.82,45.7753]
[1749464900395,6.02162382,154.92,154.83,3.75382461]
[1749464900396,3.75382461,154.92,154.83,3.75382461]
[1749464900596,3.75382461,154.92,154.85,6.4542]
[1749464901000,0.041226,154.9,154.87,0.04280247]
[1749464901198,6.453,154.88,154.87,0.04280247]
[1749464911601,10.20682461,154.88,154.87,0.04280247]
[1749464911802,6.4547,154.84,154.82,39.32]
[1749464912001,3.75382461,154.86,154.82,39.32]
[1749464912403,6.4545,154.85,154.82,39.32]
[1749464912608,4.4847,154.89,154.82,39.32]
[1749464912802,83.05071336,244.61,154.83,3.75382461]
[1749464912803,0.04856551,154.87,154.83,3.75382461]
[1749464913803,0.04856551,154.87,154.85,3.75382461]
[1749464914301,0.04856551,154.87,154.82,39.32]
[1749464915002,0.04856551,154.87,154.82,45.7751]
[1749464915405,0.04856551,154.87,154.82,43.07382461]
[1749464915600,2.1617,154.93,154.86,3.75382461]
[1749464915808,11.9894131,154.98,154.9,3.75382461]
[1749464915809,2.185,154.97,154.9,3.75382461]
[1749464916110,4.3976,154.97,154.9,3.75382461]
[1749464916702,6.4970095,154.95,154.92,0.04840398]
[1749464916910,0.0466095,154.95,154.92,0.04840398]
[1749464917209,6.4505,154.94,154.92,0.04840398]
[1749464917410,0.0466095,154.95,154.92,0.04840398]
[1749464917708,6.4505,154.94,154.92,0.04840398]
[1749464919002,0.0466095,154.95,154.92,0.04840398]
[1749464919003,6.4509,154.93,154.92,0.04840398]
[1749464920112,0.0466095,154.95,154.92,0.04840398]
[1749464921215,6.4508,154.94,154.92,0.04840398]
[1749464923010,6.4509,154.93,154.92,0.04840398]
[1749464923709,6.4506,154.94,154.92,0.04840398]
[1749464923911,0.0466095,154.95,154.92,0.04840398]
[1749464924507,6.4509,154.93,154.92,0.04840398]
[1749464926516,3.75382461,154.93,154.84,38.02]
[1749464926705,9.77544843,154.94,154.85,3.75382461]
[1749464926909,6.4513,154.92,154.87,10.20682461]
[1749464927115,6.4513,154.92,154.87,3.75382461]
[1749464927310,6.02162382,154.95,154.87,3.75382461]
[1749464927516,6.452,154.91,154.87,10.20702461]
[1749464927812,0.04895057,154.93,154.87,3.75382461]
[1749464928011,6.4516,154.92,154.87,10.20712461]
[1749464928214,0.04895057,154.93,154.87,10.20712461]
[1749464928716,6.4518,154.91,154.87,10.20712461]
[1749464929723,0.04895057,154.93,154.87,3.75382461]
[1749464930417,6.4515,154.92,154.88,6.4527]
[1749464930614,0.04895057,154.93,154.89,3.75382461]
[1749464930814,6.50015057,154.93,154.89,10.20612461]
[1749464931310,0.04895057,154.93,154.88,41.77382461]
[1749464931517,6.4514,154.92,154.88,48.22662461]
[1749464931817,0.04895057,154.93,154.88,48.22662461]
[1749464931818,0.04895057,154.93,154.88,41.77382461]
[1749464932013,6.4516,154.92,154.88,41.77382461]
[1749464932609,6.49995057,154.93,154.88,41.77382461]
[1749464932915,0.04895057,154.93,154.88,41.77382461]
[1749464933217,6.49985057,154.93,154.89,6.4524]
[1749464933416,0.04895057,154.93,154.88,41.77382461]
[1749464933617,0.04895057,154.93,154.89,8.98]
[1749464934217,6.50015057,154.93,154.89,8.98]
[1749464935418,6.4514,154.92,154.89,8.98]
[1749464935819,0.04895057,154.93,154.89,8.98]
[1749464936117,0.04895057,154.93,154.9,3.75382461]
[1749464936820,0.04895057,154.93,154.92,3.75382461]
[1749464937014,0.04895057,154.93,154.92,41.77382461]
[1749464938719,233.31814276,155.0,154.92,41.77382461]
[1749464938922,6.4499,154.96,154.92,41.77382461]
[1749464939421,6.4499,154.96,154.94,3.75382461]
[1749464940511,6.45,154.95,154.94,3.75382461]
[1749464943117,6.4505,154.94,154.93,0.0495041]
[1749464948214,6.4505,154.94,154.93,4.1e-06]
[1749464951521,6.4521,154.9,154.89,8.98]
[1749464951713,13.94857501,154.95,154.85,38.0]
[1749464951714,3.75382461,154.91,154.85,38.0]
[1749464951920,3.75382461,154.91,154.82,38.0]
[1749464951921,3.75382461,154.89,154.82,38.0]
[1749464952223,6.4546,154.84,154.82,38.0]
[1749464953627,6.49902667,154.85,154.82,38.0]
[1749464953823,0.04462667,154.85,154.82,38.0]
[1749464954427,0.04462667,154.85,154.82,44.4554]
[1749464954927,6.49892667,154.85,154.82,38.0]
[1749464955624,0.04462667,154.85,154.82,38.0]
[1749464955827,6.0152504,154.92,154.82,44.46]
[1749464956021,8.1033504,154.95,154.88,3.75382461]
[1749464956227,2.0881,154.95,154.87,43.52]
[1749464956424,6.4508,154.94,154.87,43.52]
[1749464956620,6.4508,154.94,154.87,47.27382461]
[1749464956931,0.04216822,154.92,154.89,6.50004852]
[1749464957128,0.04216822,154.92,154.89,3.80137313]
[1749464957325,0.04216822,154.92,154.9,6.4521]
[1749464957520,0.04216822,154.92,154.89,3.80137313]
[1749464957922,0.04216822,154.92,154.91,6.4517]
[1749464958927,0.04216822,154.92,154.9,6.4521]
[1749464960931,0.04216822,154.92,154.89,0.04754852]
[1749464961529,6.452,154.91,154.89,0.04754852]
[1749464961932,6.49376822,154.92,154.89,0.04754852]
[1749464962131,0.04216822,154.92,154.89,0.04754852]
[1749464963531,6.49356822,154.92,154.89,0.04754852]
[1749464963933,0.04216822,154.92,154.89,0.04754852]
[1749464964434,9.76907501,154.91,154.83,43.52]
[1749464964634,6.4528,154.89,154.84,6.4545]
[1749464964825,6.0152504,154.92,154.84,3.75382461]
[1749464965026,53.28907501,154.93,154.84,3.75382461]
[1749464965330,6.4524,154.9,154.85,6.4541]
[1749464965531,0.04124482,154.89,154.84,3.75382461]
[1749464966530,0.04124482,154.89,154.83,43.52]
[1749464966732,6.49394482,154.89,154.84,3.75382461]
[1749464967036,6.49394482,154.89,154.84,10.20832461]
[1749464967331,0.04124482,154.89,154.84,3.75382461]
[1749464967936,6.49404482,154.89,154.85,6.4541]
[1749464968737,0.04124482,154.89,154.84,3.75382461]
[1749464969343,0.04124482,154.89,154.86,6.4535]
[1749464970239,6.49374482,154.89,154.85,6.4541]
[1749464970439,0.04124482,154.89,154.84,3.75382461]
[1749464970646,0.04124482,154.89,154.83,43.52]
[1749464970843,6.4541,154.86,154.83,43.52]
[1749464971043,0.04124482,154.89,154.83,43.52]
[1749464971243,3.75382461,154.88,154.83,43.52]
[1749464971548,6.4545,154.85,154.83,43.52]
[1749464971749,0.04222144,154.86,154.83,43.52]
[1749464972346,6.49622144,154.86,154.83,43.52]
[1749464973541,0.04222144,154.86,154.83,53.72842461]
[1749464973744,0.04222144,154.86,154.83,43.52]
[1749464973946,3.75382461,154.85,154.81,14.08]
[1749464974247,0.04222144,154.86,154.81,14.08]
[1749464975350,0.04222144,154.86,154.8,43.52]
[1749464975545,6.4546,154.84,154.8,49.9761]
[1749464977650,6.4546,154.84,154.8,62.0261]
[1749464978655,6.4544,154.85,154.81,6.4558]
[1749464978853,0.04222144,154.86,154.81,6.4558]
[1749464979655,6.4546,154.84,154.81,6.4558]
[1749464980157,0.04222144,154.86,154.81,6.4558]
[1749464980550,0.04222144,154.86,154.81,3.75382461]
[1749464980756,0.04222144,154.86,154.8,55.57]
[1749464981059,0.04222144,154.86,154.84,6.4544]
[1749464982457,0.04222144,154.86,154.85,6.4542]
[1749464982751,0.04222144,154.86,154.83,3.75382461]
[1749464982957,0.04222144,154.86,154.84,6.4544]
[1749464983853,0.04222144,154.86,154.83,10.20862461]
[1749464984060,6.49642144,154.86,154.81,3.75382461]
[1749464984360,6.49642144,154.86,154.83,6.455]
[1749464985863,6.49642144,154.86,154.82,6.4553]
[1749464986051,6.4542,154.85,154.82,6.4553]
[1749464986558,6.4544,154.85,154.81,6.4556]
[1749464986760,6.4544,154.85,154.8,55.57]
[1749464987058,6.4544,154.85,154.8,59.32382461]
[1749464987953,6.49612144,154.86,154.8,59.32382461]
[1749464988258,0.04222144,154.86,154.82,6.4552]
[1749464988659,6.4542,154.85,154.82,6.4552]
[1749464988853,0.04222144,154.86,154.8,47.27382461]
[1749464989759,6.49632144,154.86,154.82,6.4553]
[1749464990164,6.49632144,154.86,154.83,12.4]
[1749464991061,6.4546,154.85,154.83,12.4]
[1749464996177,0.04222144,154.86,154.83,18.8548]
[1749464996371,0.04222144,154.86,154.83,12.4]
[1749464996762,6.49602144,154.86,154.83,12.4]
[1749464997175,0.04222144,154.86,154.83,12.4]
[1749464997773,6.49612144,154.86,154.83,12.4]
[1749464998365,0.04222144,154.86,154.83,12.4]
[1749464998674,6.4542,154.85,154.83,12.4]
[1749465000478,6.49622144,154.86,154.83,12.4]
[1749465000976,0.04222144,154.86,154.85,6.4542]
[1749465001375,6.01270163,154.93,154.85,41.96]
[1749465001574,6.01270163,154.93,154.89,3.75382461]
[1749465001771,6.01270163,154.94,154.89,3.75382461]
[1749465001970,8.20150163,154.95,154.89,3.75382461]
[1749465002169,11.89442624,154.97,154.89,3.75382461]
[1749465002373,41.96,154.98,154.85,44.2145]
[1749465002374,0.04262511,154.95,154.91,3.79604605]
[1749465002574,0.04262511,154.95,154.91,45.75604605]
[1749465002771,0.04262511,154.95,154.93,3.75382461]
[1749465003778,0.04262511,154.95,154.92,6.451]
[1749465004086,0.04262511,154.95,154.91,45.75604605]
[1749465006786,0.04262511,154.95,154.94,6.4504]
[1749465008374,47.97270163,155.02,154.96,6.4492]
[1749465008578,6.448,155.0,154.96,10.20302461]
[1749465008785,51.72652624,155.02,154.94,3.75382461]
[1749465009084,6.4505,154.94,154.91,41.96]
[1749465009278,3.75382461,154.98,154.91,41.96]
[1749465009480,0.04629261,154.96,154.93,0.04317491]
[1749465011184,0.04629261,154.96,154.94,3.75382461]
[1749465012282,0.04629261,154.96,154.94,10.20402461]
[1749465012884,0.04629261,154.96,154.95,6.45]
[1749465013479,2.109,155.03,154.94,3.75382461]
[1749465013685,22.05110461,155.04,154.97,3.75382461]
[1749465013686,18.29728,155.04,154.97,3.75382461]
[1749465013884,18.29728,155.04,154.97,45.69382461]
[1749465014084,18.29728,155.04,154.98,6.4486]
[1749465014488,6.4469,155.03,154.97,45.69382461]
[1749465014688,6.48806634,155.03,154.99,0.0467545]
[1749465014890,6.48806634,155.03,154.99,6.4950545]
[1749465015693,0.04116634,155.03,154.99,0.0467545]
[1749465015993,3.79499095,155.03,154.99,0.0467545]
[1749465016187,6.448,155.0,154.99,0.0467545]
[1749465016490,0.04116634,155.03,154.99,0.0467545]
[1749465018290,6.4475,155.02,154.99,0.0467545]
[1749465019594,6.4477,155.01,154.99,0.0467545]
[1749465019894,3.79499095,155.03,154.99,0.0467545]
[1749465020084,8.92066725,155.03,154.99,0.0467545]
[1749465020286,6.448,155.0,154.99,0.0467545]
[1749465022693,0.04116634,155.03,154.99,0.0467545]
[1749465023291,6.48816634,155.03,154.99,0.0467545]
[1749465023796,0.04116634,155.03,154.99,0.0467545]
[1749465024396,6.4474,155.02,154.99,0.0467545]
[1749465024600,6.4474,155.02,155.0,12.62]
[1749465024792,0.04116634,155.03,155.0,12.62]
[1749465024993,6.4475,155.01,155.0,12.62]
[1749465025597,6.4475,155.01,155.0,5.711]
[1749465026091,3.75382461,155.01,154.93,40.56]
[1749465026296,3.75382461,155.01,154.93,44.31382461]
[1749465026800,3.75382461,155.01,154.93,50.76442461]
[1749465027002,3.75382461,155.01,154.93,44.31382461]
[1749465027202,0.0496239,154.99,154.95,0.04613635]
[1749465027393,6.4493,154.97,154.95,0.04613635]
[1749465027902,0.0496239,154.99,154.95,0.04613635]
[1749465028600,6.4491,154.98,154.95,0.04613635]
[1749465029102,0.0496239,154.99,154.95,0.04613635]
[1749465030099,0.0496239,154.99,154.96,6.4494]
[1749465030405,0.0496239,154.99,154.95,3.79996096]
[1749465030705,0.0496239,154.99,154.97,6.4488]
[1749465031201,0.0496239,154.99,154.95,0.04613635]
[1749465031796,6.4983239,154.99,154.95,6.49603635]
[1749465032397,6.4983239,154.99,154.96,6.4496]
[1749465032604,0.0496239,154.99,154.96,6.4496]
[1749465033911,0.0496239,154.99,154.97,6.4492]
[1749465034414,0.0496239,154.99,154.95,0.04613635]
[1749465035007,6.4980239,154.99,154.95,6.49593635]
[1749465035207,0.0496239,154.99,154.95,0.04613635]
[1749465035413,0.0496239,154.99,154.98,10.20262461]
[1749465036109,0.0496239,154.99,154.97,6.4491]
[1749465036616,0.0496239,154.99,154.97,6.4492]
[1749465036914,0.0496239,154.99,154.96,3.75382461]
[1749465037315,0.0496239,154.99,154.98,10.20262461]
[1749465037510,16.10678,155.04,154.98,3.75382461]
[1749465037714,22.55338,155.04,155.0,10.20142461]
[1749465038211,6.4469,155.03,154.99,6.4484]
[1749465038713,6.49631004,155.03,155.0,6.4479]
[1749465039119,0.04941004,155.03,155.0,6.4479]
[1749465039514,0.04941004,155.03,154.99,6.49075354]
[1749465039816,6.49641004,155.03,154.99,6.49075354]
[1749465040016,0.04941004,155.03,154.99,6.49075354]
[1749465040411,6.49641004,155.03,154.99,6.49075354]
[1749465041716,6.49641004,155.03,155.0,6.448]
[1749465042213,6.49641004,155.03,154.99,6.49095354]
[1749465042407,6.4472,155.02,154.99,6.49095354]
[1749465042612,0.04941004,155.03,155.0,6.448]
[1749465043319,0.04941004,155.03,154.99,0.04255354]
[1749465043320,6.49651004,155.03,154.99,6.49085354]
[1749465043517,6.49651004,155.03,154.99,0.04255354]
[1749465044218,0.04941004,155.03,155.0,3.75382461]
[1749465045217,0.04941004,155.03,155.02,10.20102461]
[1749465046722,0.04941004,155.03,155.02,3.75382461]
[1749465047021,0.04941004,155.03,155.0,3.75382461]
[1749465047222,5.20562635,155.03,155.0,3.75382461]
[1749465047415,5.20656701,155.03,155.0,3.75382461]
[1749465048119,0.04941004,155.03,155.0,3.75382461]
[1749465048617,6.49621004,155.03,155.0,3.75382461]
[1749465048821,6.49621004,155.03,155.0,10.20162461]
[1749465049122,0.04941004,155.03,155.0,3.75382461]
[1749465049317,0.04941004,155.03,155.01,6.4473]
[1749465049915,0.04941004,155.03,155.02,6.4472]
[1749465050122,5.21787408,155.03,155.02,6.4472]
[1749465050418,5.21787408,155.03,155.0,3.75382461]
[1749465050619,0.04941004,155.03,155.01,6.4475]
[1749465052219,0.04941004,155.03,155.02,6.4472]
[1749465052425,5.2180978,155.03,155.0,3.75382461]
[1749465052618,0.04941004,155.03,155.0,3.75382461]
[1749465053019,0.04941004,155.03,155.01,6.4474]
[1749465053324,5.21849921,155.03,155.01,6.4474]
[1749465053523,0.04941004,155.03,155.01,6.4474]
[1749465053725,5.21856276,155.03,155.02,6.4472]
[1749465055322,10.09614639,155.12,155.02,49.23382461]
[1749465055627,4.15375368,155.11,155.09,3.75382461]
[1749465055833,2.1741,155.14,155.07,42.77382461]
[1749465056029,4.15367397,155.13,155.08,6.4447]
[1749465056331,0.04579714,155.12,155.09,0.04460084]
[1749465056530,4.19253942,155.12,155.09,0.04460084]
[1749465056731,4.14727896,155.11,154.98,3.75382461]
[1749465056937,7.90123936,155.1,154.99,39.0]
[1749465057126,10.59202714,155.09,155.0,39.0]
[1749465057325,3.75382461,155.1,155.02,3.75382461]
[1749465057527,4.14743935,155.09,155.01,39.0]
[1749465057729,4.14743935,155.09,155.03,0.04376418]
[1749465057730,6.48660189,155.07,155.03,0.04376418]
[1749465058328,0.04130189,155.07,155.03,0.04376418]
[1749465058933,6.48680189,155.07,155.03,0.04376418]
[1749465059430,6.4456,155.06,155.03,0.04376418]
[1749465059937,6.4457,155.06,155.03,0.04376418]
[1749465060135,2.11480189,155.07,155.03,0.04376418]
[1749465060436,5.8686265,155.07,155.03,0.04376418]
[1749465060639,6.4464,155.05,155.03,0.04376418]
[1749465061741,6.4457,155.06,155.03,0.04376418]
[1749465061934,5.8686265,155.07,155.03,0.04376418]
[1749465062233,10.53447169,155.06,155.03,0.04376418]
[1749465062434,3.75382461,155.06,155.03,0.04376418]
[1749465062639,2.11480189,155.07,154.96,39.0]
[1749465062640,3.75382461,155.04,154.96,39.0]
[1749465062837,6.4479,155.01,154.96,39.0]
[1749465063237,39.0,155.05,154.96,39.0]
[1749465063430,2.0735,155.07,154.99,3.75382461]
[1749465063636,0.04747304,155.05,155.01,3.80280866]
[1749465064031,0.04747304,155.05,155.01,0.04898405]
[1749465064838,0.04747304,155.05,155.02,6.4469]
[1749465065044,0.04747304,155.05,155.01,3.80280866]
[1749465065642,0.04747304,155.05,155.03,3.75382461]
[1749465065843,0.04747304,155.05,155.03,10.20042461]
[1749465066136,0.04747304,155.05,155.01,3.80280866]
[1749465066537,0.04747304,155.05,155.02,6.4471]
[1749465067440,0.04747304,155.05,155.02,15.7371]
[1749465070143,6.49347304,155.05,155.02,9.29]
[1749465070748,0.04747304,155.05,155.02,15.7371]
[1749465072146,0.04747304,155.05,155.03,6.4467]
[1749465072551,0.04747304,155.05,155.02,9.29]
[1749465072742,0.04747304,155.05,155.02,15.7371]
[1749465074248,0.04747304,155.05,155.02,9.29]
[1749465074649,0.04747304,155.05,155.03,6.4464]
[1749465075247,0.04747304,155.05,155.02,9.29]
[1749465075741,0.04747304,155.05,155.04,6.4463]
[1749465075946,2.156,155.11,155.03,3.75382461]
[1749465076145,4.09819107,155.1,155.06,3.75382461]
[1749465076552,2.156,155.11,155.06,3.75382461]
[1749465076749,4.10067903,155.1,155.06,3.75382461]
[1749465076948,0.0430381,155.1,155.06,3.79940514]
[1749465077147,0.0430381,155.1,155.06,0.04558053]
[1749465077545,0.0430381,155.1,155.08,6.4446]
[1749465078456,0.0430381,155.1,155.09,6.4443]
[1749465079050,0.0430381,155.1,155.09,10.19812461]
[1749465080050,0.0430381,155.1,155.09,3.75382461]
[1749465081259,0.0430381,155.1,155.07,14.255]
[1749465081556,0.0430381,155.1,155.08,3.75382461]
[1749465082055,0.0430381,155.1,155.08,10.19822461]
[1749465082651,0.0430381,155.1,155.09,6.4443]
[1749465083062,0.0430381,155.1,155.08,10.19822461]
[1749465083657,0.0430381,155.1,155.09,6.4443]
[1749465083953,0.0430381,155.1,155.08,3.75382461]
[1749465084149,0.0430381,155.1,155.09,6.4444]
[1749465086861,6.4416,155.16,155.13,6.4426]
[1749465087163,4.3283,155.17,155.08,39.26]
[1749465087460,6.4417,155.16,155.11,3.75382461]
[1749465087858,0.04153908,155.15,155.12,6.48807141]
[1749465088059,0.04153908,155.15,155.12,0.04497141]
[1749465088254,6.48343908,155.15,155.12,0.04497141]
[1749465088565,0.04153908,155.15,155.12,0.04497141]
[1749465088763,6.48373908,155.15,155.12,0.04497141]
[1749465089067,0.04153908,155.15,155.12,6.48777141]
[1749465089258,6.48363908,155.15,155.12,0.04497141]
[1749465089457,0.04153908,155.15,155.12,0.04497141]
[1749465090362,3.75382461,155.14,155.12,0.04497141]
[1749465090663,6.4427,155.13,155.12,0.04497141]
[1749465091662,6.4424,155.14,155.12,0.04497141]
[1749465091861,0.04153908,155.15,155.12,0.04497141]
[1749465092565,0.04153908,155.15,155.12,6.48797141]
[1749465092965,6.48343908,155.15,155.12,0.04497141]
[1749465093265,0.04153908,155.15,155.12,0.04497141]
[1749465093961,3.75382461,155.14,155.08,39.26]
[1749465094169,2.2689,155.13,155.08,39.26]
[1749465094966,6.4439,155.11,155.09,0.04600903]
[1749465095358,0.04782187,155.12,155.09,0.04600903]
[1749465095964,6.4439,155.11,155.09,0.04600903]
[1749465096364,3.80164648,155.12,155.07,7.81]
[1749465096565,6.4448,155.08,155.07,7.81]
[1749465096962,6.4442,155.1,155.07,7.81]
[1749465097564,11.6396352,155.1,155.07,7.85326776]
[1749465097959,5.1954352,155.1,155.07,7.85326776]
[1749465098163,6.4437,155.11,155.07,7.85326776]
[1749465098366,11.63955171,155.11,155.07,7.85326776]
[1749465098777,6.4441,155.1,155.07,7.85326776]
[1749465098970,5.19585171,155.11,155.07,7.85326776]
[1749465099272,9.31105998,155.1,155.07,7.85326776]
[1749465099470,8.94967632,155.09,155.04,39.24]
[1749465099672,3.75382461,155.05,154.95,411.7835]
[1749465099868,3.75382461,155.02,154.95,410.52]
[1749465100074,6.4487,154.99,154.95,39.24]
[1749465100264,6.4487,154.99,154.92,3.75382461]
[1749465100265,3.75382461,155.0,154.92,38.26]
[1749465100469,3.75382461,155.0,154.93,6.4508]
[1749465100772,3.75382461,154.96,154.94,0.0447396]
[1749465100970,6.4502,154.95,154.94,0.0447396]
[1749465101364,3.75382461,154.96,154.94,0.0447396]
[1749465102078,5.21136981,154.98,154.94,0.0447396]
[1749465102375,0.04498384,154.98,154.94,0.0447396]
[1749465103175,0.04498384,154.98,154.94,3.79856421]
[1749465103377,6.1122342,154.95,154.9,10.78]
[1749465103677,6.1122342,154.93,154.9,10.78]
[1749465104071,6.4519,154.91,154.9,10.78]
[1749465104481,0.04475313,154.92,154.84,44.3922342]
[1749465105070,0.04475313,154.92,154.88,6.453]
[1749465105479,0.04475313,154.92,154.84,44.3922342]
[1749465105677,0.04475313,154.92,154.88,6.453]
[1749465105877,0.04475313,154.92,154.84,44.3922342]
[1749465106182,0.04475313,154.92,154.88,6.453]
[1749465106682,0.04475313,154.92,154.84,44.3922342]
[1749465107185,0.04475313,154.92,154.86,6.1122342]
[1749465107487,6.49655313,154.92,154.87,6.4532]
[1749465107981,6.49655313,154.92,154.86,6.4539]
[1749465107982,6.4526,154.9,154.86,6.4539]
[1749465108182,0.04475313,154.92,154.85,9.63]
[1749465108779,0.04475313,154.92,154.87,6.4535]
[1749465108981,0.04475313,154.92,154.85,9.63]
[1749465109284,0.04475313,154.92,154.87,6.4535]
[1749465109887,0.04475313,154.92,154.85,9.63]
[1749465110384,0.04475313,154.92,154.86,6.4539]
[1749465110779,0.04475313,154.92,154.85,15.7422342]
[1749465112284,0.04475313,154.92,154.87,6.1122342]
[1749465112674,0.04475313,154.92,154.88,6.453]
[1749465113179,0.04475313,154.92,154.89,6.4524]
[1749465113481,0.04475313,154.92,154.87,6.1122342]
[1749465114282,0.04475313,154.92,154.88,38.3]
[1749465114478,0.04475313,154.92,154.89,6.4527]
[1749465114785,0.04475313,154.92,154.88,38.3]
[1749465114988,0.04475313,154.92,154.91,6.4519]
[1749465115184,40.376,154.99,154.91,6.1122342]
[1749465115384,6.4496,154.97,154.91,6.1122342]
[1749465115584,40.376,154.99,154.93,6.4509]
[1749465115985,6.4495,154.97,154.91,6.1122342]
[1749465116186,0.04927116,154.96,154.93,6.1122342]
[1749465117882,0.04927116,154.96,154.95,6.4502]
[1749465118189,0.04927116,154.96,154.93,6.1122342]
[1749465119590,0.04927116,154.96,154.93,12.5629342]
[1749465119986,0.04927116,154.96,154.92,38.34882986]
[1749465120185,0.04927116,154.96,154.94,6.4506]
[1749465120688,0.04927116,154.96,154.92,44.46106406]
[1749465120689,0.04927116,154.96,154.95,6.4502]
[1749465120886,0.04927116,154.96,154.92,44.46106406]
[1749465121089,0.04927116,154.96,154.92,38.34882986]
[1749465121987,0.04927116,154.96,154.93,6.1122342]
[1749465122583,0.04927116,154.96,154.95,6.1122342]
[1749465122788,6.4471,155.03,154.99,6.4483]
[1749465123087,38.3,155.06,154.99,6.1122342]
[1749465123293,4.2004,155.08,155.01,3.74292528]
[1749465123692,0.04402495,155.06,155.03,0.04881269]
[1749465123892,6.4465,155.04,155.03,0.04881269]
[1749465124390,6.4461,155.05,155.03,0.04881269]
[1749465125191,6.48982495,155.06,155.03,0.04881269]
[1749465125694,0.04402495,155.06,155.03,0.04881269]
[1749465126397,0.04402495,155.06,155.03,6.49561269]